fUSD/lending_fUSD_20250806
["ID","MTS","AMOUNT","RATE_DAILY","PERIOD"]
[377602815,1754448883365,-1853.29,0.0004,14]
[377602816,1754448883374,-414.57,0.0004,14]
[377602817,1754448883383,-2171.13,0.0004,14]
[377602818,1754448883468,-492.36,0.0004,14]
[377602819,1754448883479,-1432.94,0.0004,14]
[377602820,1754448883488,-2772.54,0.0004,14]
[377602821,1754448883497,-660.15,0.0004,14]
[377602822,1754448883507,-687.86,0.0004,14]
[377602823,1754448883518,-1512.02,0.0004,14]
[377602824,1754448883526,-1752.0,0.0004,14]
[377602825,1754448883536,-1827.77,0.0004,14]
[377602826,1754448883546,-710.17,0.0004,14]
[377602827,1754448883555,-2123.08,0.0004,14]
[377602828,1754448883565,-400.0,0.0004,14]
[377602829,1754448883574,-2320.18,0.0004,14]
[377602830,1754448883583,-541.8,0.0004,14]
[377602831,1754448883593,-1290.75,0.0004,14]
[377602832,1754448883602,-2988.22,0.0004,14]
[377602833,1754448883611,-3809.64,0.0004,14]
[377602834,1754448883619,-432.19,0.0004,14]
[377602835,1754448883628,-650.32,0.0004,14]
[377602836,1754448883637,-786.46,0.0004,14]
[377602837,1754448883646,-2067.35,0.0004,14]
[377602838,1754448883655,-1893.56,0.0004,14]
[377602839,1754448883665,-436.89,0.0004,14]
[377602840,1754448883674,-1091.29,0.0004,14]
[377602841,1754448883683,-2121.86,0.0004,14]
[377602842,1754448883692,-403.94,0.0004,14]
[377602843,1754448883701,-2572.93,0.0004,14]
[377602844,1754448883710,-1090.58,0.0004,14]
[377602845,1754448883718,-2572.33,0.0004,14]
[377602846,1754448883727,-1310.5,0.0004,14]
[377602847,1754448883736,-1680.95,0.0004,14]
[377602848,1754448883745,-1082.92,0.0004,14]
[377602849,1754448883754,-569.78,0.0004,14]
[377602850,1754448883762,-456.45,0.0004,14]
[377602851,1754448883771,-1882.26,0.0004,14]
[377602852,1754448883780,-541.54,0.0004,14]
[377602853,1754448883789,-615.57,0.0004,14]
[377602854,1754448883798,-819.87,0.0004,14]
[377602855,1754448883807,-1272.84,0.0004,14]
[377602856,1754448883817,-2393.94,0.0004,14]
[377602857,1754448883826,-571.97,0.0004,14]
[377602858,1754448883835,-472.45,0.0004,14]
[377602859,1754448883845,-1821.93,0.0004,14]
[377602860,1754448883853,-400.0,0.0004,14]
[377602861,1754448883863,-2205.0,0.0004,14]
[377602862,1754448883872,-2459.29,0.0004,14]
[377602863,1754448883882,-1723.53,0.0004,14]
[377602864,1754448883892,-374.65370333,0.0004,14]
[377602865,1754448883902,-1450.07,0.0004,14]
[377602866,1754448883914,-435.10365887,0.0004,14]
[377602867,1754448883924,-400.0,0.0004,14]
[377602868,1754448883934,-1328.89,0.0004,14]
[377602869,1754448883944,-498.72,0.0004,14]
[377602870,1754448883954,-2050.67,0.0004,14]
[377602871,1754448883963,-1998.0,0.0004,14]
[377602872,1754448883972,-535.20871977,0.0004,14]
[377602873,1754448883981,-2177.61,0.0004,14]
[377602874,1754448883991,-2230.94,0.0004,14]
[377602875,1754448884000,-565.91,0.0004,14]
[377602876,1754448884010,-1023.05,0.0004,14]
[377602877,1754448884019,-1541.91,0.0004,14]
[377602878,1754448884028,-1947.18,0.0004,14]
[377602879,1754448884037,-1701.37,0.0004,14]
[377602880,1754448884047,-518.06,0.0004,14]
[377602881,1754448884057,-1840.41,0.0004,14]
[377602882,1754448884066,-3617.37,0.0004,14]
[377602883,1754448884075,-1293.69,0.0004,14]
[377602884,1754448884085,-1743.92,0.0004,14]
[377602885,1754448884096,-1163.86,0.0004,14]
[377602886,1754448884106,-2851.05,0.0004,14]
[377602887,1754448884116,-2062.42,0.0004,14]
[377602888,1754448884126,-400.0,0.0004,14]
[377602889,1754448884136,-2082.15,0.0004,14]
[377602890,1754448884145,-2004.98,0.0004,14]
[377602891,1754448884156,-1802.74,0.0004,14]
[377602892,1754448884165,-578.97,0.0004,14]
[377602893,1754448884176,-1140.6,0.0004,14]
[377602894,1754448884185,-1704.62,0.0004,14]
[377602895,1754448884194,-400.0,0.0004,14]
[377602896,1754448884204,-2059.67,0.0004,14]
[377602897,1754448884213,-400.0,0.0004,14]
[377602898,1754448884223,-400.0,0.0004,14]
[377602899,1754448884231,-2008.93,0.0004,14]
[377602900,1754448884240,-1042.45,0.0004,14]
[377602901,1754448884250,-1854.33,0.0004,14]
[377602902,1754448884259,-2421.14,0.0004,14]
[377602903,1754448884268,-904.89,0.0004,14]
[377602904,1754448884277,-1949.77,0.0004,14]
[377602905,1754448884287,-717.97,0.0004,14]
[377602906,1754448884296,-439.26,0.0004,14]
[377602907,1754448884305,-944.69,0.0004,14]
[377602908,1754448884313,-1533.65,0.0004,14]
[377602909,1754448884323,-564.92,0.0004,14]
[377602910,1754448884332,-457.43778519,0.0004,10]
[377602911,1754448884341,-457.43778519,0.0004,30]
[377602912,1754448884349,-1068.1,0.0004,14]
[377602913,1754448884358,-995.71,0.0004,14]
[377602914,1754448884367,-400.0,0.0004,14]
[377602915,1754448884375,-1225.03,0.0004,14]
[377602916,1754448884384,-400.0,0.0004,14]
[377602917,1754448884393,-423.39,0.0004,14]
[377602918,1754448884402,-5248.2,0.0004,14]
[377602919,1754448884410,-400.0,0.0004,14]
[377602920,1754448884419,-463.8,0.0004,14]
[377602921,1754448884430,-400.0,0.0004,14]
[377602922,1754448884439,-1930.39,0.0004,14]
[377602923,1754448884448,-465.73,0.0004,14]
[377602924,1754448884457,-400.0,0.0004,14]
[377602925,1754448884466,-919.64,0.0004,14]
[377602926,1754448884475,-2409.79,0.0004,14]
[377602927,1754448884483,-481.93,0.0004,14]
[377602928,1754448884492,-680.58,0.0004,14]
[377602929,1754448884501,-1276.5,0.0004,14]
[377602930,1754448884509,-2002.8,0.0004,14]
[377602931,1754448884518,-1671.93,0.0004,14]
[377602932,1754448884527,-1873.43,0.0004,14]
[377602933,1754448884536,-306.47819079,0.0004,14]
[377602934,1754448884544,-3610.35,0.0004,14]
[377602935,1754448884553,-1790.5,0.0004,14]
[377602936,1754448884562,-1409.58,0.0004,14]
[377602937,1754448884571,-589.06,0.0004,14]
[377602938,1754448884580,-1784.3,0.0004,14]
[377602939,1754448884589,-493.42,0.0004,14]
[377602940,1754448884598,-769.03,0.0004,14]
[377602941,1754448884607,-400.0,0.0004,14]
[377602942,1754448884616,-1966.76,0.0004,14]
[377602943,1754448884625,-446.21,0.0004,14]
[377602944,1754448884634,-1081.98,0.0004,14]
[377602945,1754448884643,-974.88,0.0004,14]
[377602946,1754448884652,-211.52696026,0.0004,10]
[377602947,1754448884661,-211.52696026,0.0004,30]
[377602948,1754448884671,-662.34,0.0004,14]
[377602949,1754448884680,-211.52696026,0.0004,120]
[377602950,1754448884689,-400.0,0.0004,14]
[377602951,1754448884699,-861.94,0.0004,14]
[377602952,1754448884708,-1264.89,0.0004,14]
[377602953,1754448884717,-2151.64,0.0004,14]
[377602954,1754448884725,-2193.87,0.0004,14]
[377602955,1754448884734,-950.01,0.0004,14]
[377602956,1754448884743,-433.2,0.0004,14]
[377602957,1754448884752,-2313.76,0.0004,14]
[377602958,1754448884761,-657.46,0.0004,120]
[377602959,1754448884770,-2093.1,0.0004,14]
[377602960,1754448884779,-2798.78,0.0004,14]
[377602961,1754448884788,-1069.38,0.0004,14]
[377602962,1754448884797,-1990.46,0.0004,14]
[377602963,1754448884806,-825.71,0.0004,14]
[377602964,1754448884815,-1160.89,0.0004,14]
[377602965,1754448884824,-552.31,0.0004,14]
[377602966,1754448884833,-534.6,0.0004,14]
[377602967,1754448884842,-2830.73,0.0004,14]
[377602968,1754448884851,-400.0,0.0004,14]
[377602969,1754448884860,-877.07,0.0004,14]
[377602970,1754448884869,-636.63,0.0004,14]
[377602971,1754448884879,-2248.31,0.0004,14]
[377602972,1754448884888,-1151.11,0.0004,14]
[377602973,1754448884897,-1232.95,0.0004,14]
[377602974,1754448884906,-2866.67,0.0004,14]
[377602975,1754448884919,-404.16,0.0004,14]
[377602976,1754448884929,-663.46,0.0004,14]
[377602977,1754448884939,-1463.25,0.0004,14]
[377602978,1754448884948,-506.01,0.0004,14]
[377602979,1754448884958,-2179.89,0.0004,14]
[377602980,1754448884967,-2812.46,0.0004,14]
[377602981,1754448884977,-4617.44,0.0004,14]
[377602982,1754448884986,-1734.55,0.0004,14]
[377602983,1754448884995,-2023.55,0.0004,14]
[377602984,1754448885004,-231.95,0.0004,120]
[377602985,1754448885014,-3963.12,0.0004,14]
[377602986,1754448885022,-2294.7,0.0004,14]
[377602987,1754448885032,-1684.51,0.0004,14]
[377602988,1754448885042,-1056.52,0.0004,14]
[377602989,1754448885051,-3017.99,0.0004,14]
[377602990,1754448885059,-523.66,0.0004,14]
[377602991,1754448885068,-586.88,0.0004,14]
[377602992,1754448885078,-914.87,0.0004,14]
[377602993,1754448885087,-435.03,0.0004,14]
[377602994,1754448885096,-534.1,0.0004,14]
[377602995,1754448885105,-933.36,0.0004,14]
[377602996,1754448885115,-611.39,0.0004,14]
[377602997,1754448885124,-2092.3,0.0004,14]
[377602998,1754448885133,-215.53,0.0004,120]
[377602999,1754448885142,-1545.14,0.0004,14]
[377603000,1754448885151,-400.0,0.0004,14]
[377603001,1754448885160,-1534.85,0.0004,14]
[377603002,1754448885169,-796.41,0.0004,14]
[377603003,1754448885179,-401.89592963,0.0004,14]
[377603004,1754448885188,-1665.11,0.0004,14]
[377603005,1754448885198,-1954.64,0.0004,14]
[377603006,1754448885206,-2159.33,0.0004,14]
[377603007,1754448885215,-1365.89,0.0004,14]
[377603008,1754448885224,-1952.38,0.0004,14]
[377603009,1754448885234,-5160.74,0.0004,14]
[377603010,1754448885243,-1216.69,0.0004,14]
[377603011,1754448885251,-1829.55,0.0004,14]
[377603012,1754448885260,-319.43980295,0.0004,14]
[377603013,1754448885269,-2121.64,0.0004,14]
[377603014,1754448885278,-945.39,0.0004,14]
[377603015,1754448885286,-2518.04,0.0004,14]
[377603016,1754448885295,-859.36,0.0004,2]
[377603017,1754448885304,-793.99,0.0004,14]
[377603018,1754448885314,-2523.11,0.0004,14]
[377603019,1754448885323,-2978.88,0.0004,14]
[377603020,1754448885332,-1289.03,0.0004,14]
[377603021,1754448885341,-2721.87,0.0004,14]
[377603022,1754448885350,-833.08,0.0004,14]
[377603023,1754448885359,-532.72,0.0004,14]
[377603024,1754448885368,-400.0,0.0004,14]
[377603025,1754448885376,-601.08,0.0004,14]
[377603026,1754448885385,-1073.41,0.0004,14]
[377603027,1754448885394,-3987.14,0.0004,14]
[377603028,1754448885403,-412.5,0.0004,14]
[377603029,1754448885412,-400.0,0.0004,14]
[377603030,1754448885421,-2539.32,0.0004,14]
[377603031,1754448885430,-2655.03,0.0004,14]
[377603032,1754448885439,-500.14,0.0004,14]
[377603033,1754448885447,-429.9745571,0.0004,30]
[377603034,1754448885456,-1245.68,0.0004,14]
[377603035,1754448885465,-828.5,0.0004,14]
[377603036,1754448885474,-3583.37,0.0004,14]
[377603037,1754448885484,-788.77,0.0004,14]
[377603038,1754448885493,-3437.75,0.0004,14]
[377603039,1754448885502,-2735.46,0.0004,14]
[377603040,1754448885511,-842.03384774,0.0004,10]
[377603041,1754448885519,-842.03384774,0.0004,30]
[377603042,1754448885528,-1688.61,0.0004,14]
[377603043,1754448885537,-842.03384774,0.0004,120]
[377603044,1754448885546,-4387.31,0.0004,14]
[377603045,1754448885554,-406.24,0.0004,14]
[377603046,1754448885563,-3134.6,0.0004,14]
[377603047,1754448885572,-735.52,0.0004,14]
[377603048,1754448885581,-3166.75,0.0004,14]
[377603049,1754448885590,-400.0,0.0004,14]
[377603050,1754448885598,-2255.41,0.0004,14]
[377603051,1754448885607,-2297.5,0.0004,14]
[377603052,1754448885616,-741.97,0.0004,14]
[377603053,1754448885625,-654.96,0.0004,14]
[377603054,1754448885633,-1381.51,0.0004,14]
[377603055,1754448885643,-74281.09,0.0004,14]
[377603056,1754448885652,-3216.0,0.0004,14]
[377603057,1754448885660,-841.14,0.0004,14]
[377603058,1754448885669,-1206.25,0.0004,14]
[377603059,1754448885678,-2750.06,0.0004,14]
[377603060,1754448885687,-2322.06,0.0004,14]
[377603061,1754448885697,-1828.82,0.0004,14]
[377603062,1754448885705,-1570.84,0.0004,14]
[377603063,1754448885714,-333.1,0.0004,14]
[377603064,1754448885723,-1492.94,0.0004,14]
[377603065,1754448885732,-434.35,0.0004,14]
[377603066,1754448885741,-761.7,0.0004,14]
[377603067,1754448885749,-519.39,0.0004,14]
[377603068,1754448885759,-2855.56,0.0004,14]
[377603069,1754448885768,-3362.96,0.0004,14]
[377603070,1754448885777,-2258.55,0.0004,14]
[377603071,1754448885786,-833.52,0.0004,14]
[377603072,1754448885795,-2733.42,0.0004,14]
[377603073,1754448885804,-1961.2,0.0004,14]
[377603074,1754448885814,-2875.37,0.0004,14]
[377603075,1754448885823,-1544.56,0.0004,14]
[377603076,1754448885832,-351.35488205,0.0004,14]
[377603077,1754448885841,-1888.87,0.0004,14]
[377603078,1754448885850,-2484.35,0.0004,14]
[377603079,1754448885859,-428.48,0.0004,14]
[377603080,1754448885868,-400.0,0.0004,14]
[377603081,1754448885877,-406.59,0.0004,14]
[377603082,1754448885887,-2248.43,0.0004,14]
[377603083,1754448885896,-1187.63,0.0004,14]
[377603084,1754448885905,-409.76,0.0004,14]
[377603085,1754448885917,-1229.19,0.0004,14]
[377603086,1754448885927,-537.84,0.0004,14]
[377603087,1754448885935,-455.67,0.0004,14]
[377603088,1754448885945,-2047.91,0.0004,14]
[377603089,1754448885955,-551.67,0.0004,14]
[377603090,1754448885963,-1281.96,0.0004,14]
[377603091,1754448885972,-725.39,0.0004,14]
[377603092,1754448885981,-1862.83,0.0004,14]
[377603093,1754448885992,-1310.3,0.0004,14]
[377603094,1754448886001,-1987.91,0.0004,14]
[377603095,1754448886010,-450.47,0.0004,14]
[377603096,1754448886019,-2884.45,0.0004,14]
[377603097,1754448886028,-2156.58,0.0004,14]
[377603098,1754448886036,-2626.5,0.0004,14]
[377603099,1754448886046,-1939.4,0.0004,14]
[377603100,1754448886055,-743.81,0.0004,14]
[377603101,1754448886063,-1720.47,0.0004,14]
[377603102,1754448886072,-1253.31,0.0004,14]
[377603103,1754448886081,-1041.11,0.0004,14]
[377603104,1754448886089,-1962.72,0.0004,14]
[377603105,1754448886098,-833.02,0.0004,14]
[377603106,1754448886107,-395.74855428,0.0004,14]
[377603107,1754448886115,-2527.58,0.0004,14]
[377603108,1754448886125,-462.46268859,0.0004,14]
[377603109,1754448886134,-1233.26,0.0004,14]
[377603110,1754448886143,-2742.82,0.0004,14]
[377603111,1754448886152,-677.09,0.0004,14]
[377603112,1754448886162,-1089.73,0.0004,14]
[377603113,1754448886172,-2514.73,0.0004,14]
[377603114,1754448886181,-2050.4,0.0004,14]
[377603115,1754448886191,-761.42,0.0004,14]
[377603116,1754448886201,-479.36,0.0004,14]
[377603117,1754448886210,-485.39,0.0004,14]
[377603118,1754448886219,-6570.38,0.0004,14]
[377603119,1754448886228,-1510.11,0.0004,14]
[377603120,1754448886237,-605.06,0.0004,14]
[377603121,1754448886246,-953.45,0.0004,14]
[377603122,1754448886255,-2555.58,0.0004,14]
[377603123,1754448886264,-2032.65,0.0004,14]
[377603124,1754448886273,-4421.93,0.0004,14]
[377603125,1754448886282,-2529.46,0.0004,14]
[377603126,1754448886291,-814.86,0.0004,14]
[377603127,1754448886300,-421.21,0.0004,14]
[377603128,1754448886309,-3180.14,0.0004,14]
[377603129,1754448886319,-2230.29,0.0004,14]
[377603130,1754448886328,-1009.38,0.0004,14]
[377603131,1754448886337,-584.03,0.0004,14]
[377603132,1754448886346,-2184.0,0.0004,14]
[377603133,1754448886355,-400.0,0.0004,14]
[377603134,1754448886364,-759.09,0.0004,14]
[377603135,1754448886374,-2402.56,0.0004,14]
[377603136,1754448886383,-679.71,0.0004,14]
[377603137,1754448886392,-2007.28,0.0004,14]
[377603138,1754448886401,-795.77,0.0004,14]
[377603139,1754448886411,-812.95,0.0004,14]
[377603140,1754448886420,-1680.57,0.0004,14]
[377603141,1754448886430,-2432.32,0.0004,14]
[377603142,1754448886439,-478.98,0.0004,14]
[377603143,1754448886448,-400.0,0.0004,14]
[377603144,1754448886457,-971.83,0.0004,14]
[377603145,1754448886466,-2915.89,0.0004,14]
[377603146,1754448886475,-3185.2,0.0004,14]
[377603147,1754448886484,-653.74,0.0004,14]
[377603148,1754448886493,-1940.76,0.0004,14]
[377603149,1754448886502,-400.0,0.0004,14]
[377603150,1754448886511,-992.11,0.0004,14]
[377603151,1754448886520,-1082.53,0.0004,14]
[377603152,1754448886529,-408.83,0.0004,14]
[377603153,1754448886539,-2661.52,0.0004,14]
[377603154,1754448886547,-816.39,0.0004,14]
[377603155,1754448886557,-1599.41,0.0004,14]
[377603156,1754448886565,-1313.46,0.0004,14]
[377603157,1754448886575,-1013.74,0.0004,14]
[377603158,1754448886584,-2175.59,0.0004,14]
[377603159,1754448886593,-3089.75,0.0004,14]
[377603160,1754448886602,-1040.53,0.0004,14]
[377603161,1754448886611,-2286.88,0.0004,14]
[377603162,1754448886620,-1019.92,0.0004,14]
[377603163,1754448886629,-1867.43,0.0004,14]
[377603164,1754448886637,-2061.99,0.0004,14]
[377603165,1754448886646,-2443.54,0.0004,14]
[377603166,1754448886656,-1546.2,0.0004,14]
[377603167,1754448886665,-400.0,0.0004,14]
[377603168,1754448886674,-391.70004897,0.0004,14]
[377603169,1754448886684,-3761.33,0.0004,14]
[377603170,1754448886693,-1315.11,0.0004,14]
[377603171,1754448886702,-1432.92,0.0004,14]
[377603172,1754448886711,-1047.25,0.0004,14]
[377603173,1754448886720,-1175.98,0.0004,14]
[377603174,1754448886729,-828.22,0.0004,14]
[377603175,1754448886738,-478.88,0.0004,14]
[377603176,1754448886747,-500.0,0.0004,46]
[377603177,1754448886757,-732.62,0.0004,14]
[377603178,1754448886766,-813.13,0.0004,14]
[377603179,1754448886775,-1402.25,0.0004,14]
[377603180,1754448886785,-431.16,0.0004,14]
[377603181,1754448886794,-2113.48,0.0004,14]
[377603182,1754448886804,-453.4,0.0004,14]
[377603183,1754448886813,-682.09,0.0004,14]
[377603184,1754448886823,-3720.93,0.0004,14]
[377603185,1754448886832,-1902.77,0.0004,14]
[377603186,1754448886841,-1870.07,0.0004,14]
[377603187,1754448886850,-578.92,0.0004,14]
[377603188,1754448886859,-449.08,0.0004,7]
[377603189,1754448886868,-744.99,0.0004,14]
[377603190,1754448886877,-400.0,0.0004,14]
[377603191,1754448886886,-2192.19,0.0004,14]
[377603192,1754448886895,-1451.6,0.0004,14]
[377603193,1754448886904,-1145.83,0.0004,14]
[377603194,1754448886915,-1448.11,0.0004,14]
[377603195,1754448886924,-2132.59,0.0004,14]
[377603196,1754448886933,-2007.5,0.0004,14]
[377603197,1754448886943,-2062.82,0.0004,14]
[377603198,1754448886953,-2903.16,0.0004,14]
[377603199,1754448886962,-1366.96,0.0004,14]
[377603200,1754448886971,-205.41901023,0.0004,14]
[377603201,1754448886979,-2707.72,0.0004,14]
[377603202,1754448886989,-3514.4,0.0004,14]
[377603203,1754448886998,-2716.46,0.0004,14]
[377603204,1754448887007,-1251.76,0.0004,14]
[377603205,1754448887016,-2012.91,0.0004,14]
[377603206,1754448887026,-2266.27,0.0004,14]
[377603207,1754448887035,-3679.16,0.0004,14]
[377603208,1754448887044,-400.0,0.0004,14]
[377603209,1754448887053,-1611.49,0.0004,14]
[377603210,1754448887062,-460.8,0.0004,14]
[377603211,1754448887071,-801.6,0.0004,14]
[377603212,1754448887080,-606.74,0.0004,14]
[377603213,1754448887089,-3442.72,0.0004,14]
[377603214,1754448887098,-3610.57,0.0004,14]
[377603215,1754448887106,-580.15,0.0004,14]
[377603216,1754448887115,-881.76,0.0004,14]
[377603217,1754448887124,-1967.92,0.0004,14]
[377603218,1754448887133,-826.11,0.0004,14]
[377603219,1754448887142,-826.95,0.0004,14]
[377603220,1754448887151,-958.68,0.0004,14]
[377603221,1754448887161,-2698.14,0.0004,14]
[377603222,1754448887170,-2097.04,0.0004,14]
[377603223,1754448887180,-1738.83,0.0004,14]
[377603224,1754448887191,-468.56,0.0004,14]
[377603225,1754448887200,-1550.41,0.0004,14]
[377603226,1754448887209,-1152.57,0.0004,14]
[377603227,1754448887218,-2348.84,0.0004,14]
[377603228,1754448887227,-2945.22,0.0004,14]
[377603229,1754448887236,-2061.05,0.0004,14]
[377603230,1754448887245,-522.01,0.0004,14]
[377603231,1754448887254,-1971.84,0.0004,14]
[377603232,1754448887263,-986.73,0.0004,14]
[377603233,1754448887272,-1022.7,0.0004,14]
[377603234,1754448887280,-1605.08,0.0004,14]
[377603235,1754448887289,-883.72,0.0004,14]
[377603236,1754448887298,-2216.79,0.0004,14]
[377603237,1754448887308,-2744.57,0.0004,14]
[377603238,1754448887319,-1176.86,0.0004,14]
[377603239,1754448887328,-2001.07,0.0004,14]
[377603240,1754448887339,-1708.89,0.0004,14]
[377603241,1754448887348,-2209.33,0.0004,14]
[377603242,1754448887357,-2625.94,0.0004,14]
[377603243,1754448887458,-400.0,0.0004,14]
[377603244,1754448887498,-1659.02,0.0004,14]
[377603245,1754448887509,-2337.97,0.0004,14]
[377603246,1754448887518,-1295.16,0.0004,14]
[377603247,1754448887528,-1663.17,0.0004,14]
[377603248,1754448887537,-2361.68,0.0004,14]
[377603249,1754448887546,-1132.6,0.0004,14]
[377603250,1754448887555,-2090.44,0.0004,14]
[377603251,1754448887565,-949.45,0.0004,14]
[377603252,1754448887574,-1513.53,0.0004,14]
[377603253,1754448887583,-2974.22,0.0004,14]
[377603254,1754448887592,-468.15,0.0004,14]
[377603255,1754448887602,-702.26,0.0004,14]
[377603256,1754448887611,-425.69,0.0004,14]
[377603257,1754448887620,-2095.59,0.0004,14]
[377603258,1754448887629,-467.46,0.0004,14]
[377603259,1754448887638,-1148.8,0.0004,14]
[377603260,1754448887647,-954.12,0.0004,14]
[377603261,1754448887656,-2021.48,0.0004,14]
[377603262,1754448887665,-2717.6,0.0004,14]
[377603263,1754448887674,-662.22,0.0004,14]
[377603264,1754448887683,-2546.61,0.0004,14]
[377603265,1754448887692,-1740.13,0.0004,14]
[377603266,1754448887701,-1198.3,0.0004,14]
[377603267,1754448887710,-2962.89,0.0004,14]
[377603268,1754448887719,-504.61,0.0004,14]
[377603269,1754448887728,-400.0,0.0004,14]
[377603270,1754448887737,-2356.45,0.0004,14]
[377603271,1754448887746,-423.2,0.0004,14]
[377603272,1754448887756,-400.0,0.0004,14]
[377603273,1754448887765,-400.0,0.0004,14]
[377603274,1754448887774,-2575.51,0.0004,14]
[377603275,1754448887783,-2130.93,0.0004,14]
[377603276,1754448887792,-3248.58,0.0004,14]
[377603277,1754448887802,-888.56,0.0004,14]
[377603278,1754448887812,-547.97,0.0004,14]
[377603279,1754448887822,-1766.95,0.0004,14]
[377603280,1754448887831,-3016.17,0.0004,14]
[377603281,1754448887840,-2668.39,0.0004,14]
[377603282,1754448887849,-496.21,0.0004,14]
[377603283,1754448887858,-3791.14,0.0004,14]
[377603284,1754448887867,-727.35,0.0004,14]
[377603285,1754448887877,-400.0,0.0004,14]
[377603286,1754448887886,-605.14,0.0004,14]
[377603287,1754448887895,-975.71,0.0004,14]
[377603288,1754448887904,-5306.84,0.0004,14]
[377603289,1754448887917,-3485.41,0.0004,14]
[377603290,1754448887926,-2009.81,0.0004,14]
[377603291,1754448887935,-400.0,0.0004,14]
[377603292,1754448887944,-2054.01,0.0004,14]
[377603293,1754448887954,-351.13241325,0.0004,14]
[377603294,1754448887964,-856.83,0.0004,14]
[377603295,1754448887974,-1517.52,0.0004,14]
[377603296,1754448887983,-1388.31,0.0004,14]
[377603297,1754448887994,-2179.98,0.0004,14]
[377603298,1754448888003,-957.04,0.0004,14]
[377603299,1754448888012,-400.0,0.0004,14]
[377603300,1754448888022,-1672.02,0.0004,14]
[377603301,1754448888032,-1561.14,0.0004,14]
[377603302,1754448888046,-410.84,0.0004,14]
[377603303,1754448888055,-2448.42,0.0004,14]
[377603304,1754448888065,-1718.51,0.0004,14]
[377603305,1754448888074,-1537.42,0.0004,14]
[377603306,1754448888084,-2558.14,0.0004,14]
[377603307,1754448888093,-1920.97,0.0004,14]
[377603308,1754448888103,-2286.3,0.0004,14]
[377603309,1754448888112,-400.0,0.0004,14]
[377603310,1754448888121,-818.29,0.0004,2]
[377603311,1754448888130,-615.01,0.0004,14]
[377603312,1754448888140,-1497.84,0.0004,14]
[377603313,1754448888149,-202.23398512,0.0004,14]
[377603314,1754448888158,-2660.98,0.0004,14]